bitfinex-derivatives/quotes_ETHF0:USTF0_20250904
["timestamp","ask_amount","ask_price","bid_price","bid_amount"]
[1756992127021,3.0057,4399.6,4399.5,3.1088]
[1756992128714,3.0057,4399.6,4399.4,0.233]
[1756992128911,3.5094,4399.5,4399.0,1.3352]
[1756992129111,3.5094,4399.5,4399.1,0.233]
[1756992129316,3.5094,4399.5,4399.2,0.233]
[1756992130108,0.8974,4398.3,4398.2,5.02095752]
[1756992130308,2.1789,4398.3,4398.2,6.58915752]
[1756992130514,2.1789,4398.3,4398.2,6.8734655]
[1756992131112,3.0057,4398.3,4398.2,6.6404655]
[1756992131317,3.0057,4398.3,4398.2,3.72510798]
[1756992131816,3.0057,4398.3,4398.2,3.49210798]
[1756992132009,3.0057,4398.3,4398.2,3.72510798]
[1756992132216,3.0057,4398.3,4398.2,3.4408]
[1756992133114,3.0057,4398.3,4398.2,4.3218]
[1756992133320,0.8974,4398.3,4398.2,6.5054]
[1756992133722,3.1476,4398.3,4398.2,5.2087]
[1756992133922,3.1476,4398.3,4398.2,6.5054]
[1756992135121,3.1476,4398.3,4398.2,3.2078]
[1756992135326,3.1476,4398.3,4398.2,0.28427462]
[1756992135528,3.1476,4398.3,4398.2,0.51727462]
[1756992135823,7.1476,4398.3,4398.2,0.51727462]
[1756992136022,7.1476,4398.3,4398.2,0.233]
[1756992136916,3.1476,4398.3,4398.2,0.233]
[1756992137118,3.1476,4398.3,4398.2,1.114]
[1756992137519,3.1476,4398.3,4398.2,0.233]
[1756992139023,1.7556,4397.9,4397.8,0.881]
[1756992139321,3.1403,4397.9,4397.8,1.114]
[1756992139622,3.1403,4397.9,4397.8,3.2976]
[1756992139822,3.1403,4397.9,4397.8,0.233]
[1756992141217,1.7556,4397.9,4397.5,3.2078]
[1756992141420,3.1403,4397.8,4397.7,0.881]
[1756992141625,3.1403,4397.8,4397.7,1.10736861]
[1756992143122,3.1403,4397.8,4397.7,1.34036861]
[1756992144924,4.2035,4397.8,4397.7,0.45936861]
[1756992145530,4.2035,4397.8,4397.7,0.22636861]
[1756992145729,4.2035,4397.8,4397.7,0.233]
[1756992146133,0.5036,4397.5,4397.4,31.35]
[1756992146329,1.8883,4397.5,4397.4,31.80622404]
[1756992146825,1.8883,4397.5,4397.4,31.57322404]
[1756992147021,3.6439,4397.5,4396.9,3.2078]
[1756992147222,3.1403,4396.5,4396.4,6.2724]
[1756992147532,4.77369006,4396.5,4395.9,3.2078]
[1756992147729,2.2592,4396.0,4395.9,4.31287342]
[1756992148031,3.6439,4396.0,4395.9,5.67566348]
[1756992148226,0.8901,4396.0,4395.9,7.85926348]
[1756992148422,0.5036,4396.5,4395.9,7.85926348]
[1756992148423,3.1403,4396.4,4396.3,3.0646]
[1756992148625,3.1403,4396.4,4396.3,4.42739006]
[1756992148927,0.8901,4396.4,4396.3,4.42739006]
[1756992149131,3.1403,4396.4,4396.3,3.13069006]
[1756992149431,2.2748,4396.4,4396.3,4.42739006]
[1756992149826,3.2078,4396.6,4396.3,4.42739006]
[1756992150130,5.4826,4396.6,4396.5,3.0646]
[1756992150324,5.4826,4396.6,4396.5,3.2976]
[1756992150525,3.2078,4396.6,4396.5,3.2976]
[1756992150728,0.1137,4396.8,4396.6,1.2967]
[1756992151025,0.1137,4396.8,4396.7,3.10599006]
[1756992151231,0.1137,4396.8,4396.7,8.21443006]
[1756992151432,0.1137,4396.8,4396.7,11.09782131]
[1756992151635,2.2748,4396.8,4396.7,1.5605]
[1756992152334,3.1403,4396.8,4396.7,0.233]
[1756992152520,2.2592,4396.5,4396.4,4.0888]
[1756992152724,3.6439,4396.5,4396.4,1.114]
[1756992153329,3.6439,4396.5,4396.4,2.0009]
[1756992154526,3.6439,4396.5,4396.4,1.114]
[1756992155929,2.7784,4396.5,4396.4,2.0009]
[1756992156131,2.1615,4396.6,4396.5,2.5985]
[1756992156330,3.0516,4396.6,4396.5,1.7679]
[1756992156640,0.7768,4396.6,4396.5,2.5985]
[1756992158031,0.7768,4396.6,4396.5,6.5985]
[1756992159433,0.1137,4396.7,4396.6,0.8306]
[1756992159637,1.3847,4397.1,4396.7,0.8306]
[1756992159833,3.2078,4398.4,4396.8,3.4408]
[1756992160033,2.7784,4397.5,4397.4,1.7679]
[1756992160233,3.6439,4397.5,4397.4,2.0009]
[1756992162838,4.7207,4397.5,4397.4,0.233]
[1756992163238,2.9651,4397.5,4397.4,0.233]
[1756992163538,0.9178,4397.1,4397.0,2.03690696]
[1756992163835,3.0952,4397.1,4397.0,0.233]
[1756992164332,1.8244,4396.9,4396.8,2.03690696]
[1756992164535,3.0952,4396.9,4396.8,2.03690696]
[1756992164735,1.8244,4396.9,4396.6,2.03690696]
[1756992164940,3.0952,4396.8,4396.7,0.233]
[1756992165133,1.2708,4396.8,4396.7,0.233]
[1756992165336,1.7973,4397.0,4396.7,0.233]
[1756992165535,1.7973,4397.0,4396.9,4.01318131]
[1756992165736,2.7151,4397.0,4396.9,4.24618131]
[1756992165937,2.7151,4397.0,4396.9,0.233]
[1756992166535,3.6217,4397.0,4396.9,0.233]
[1756992167628,3.6217,4397.0,4396.9,3.4408]
[1756992167629,2.7151,4397.0,4396.9,3.4408]
[1756992167835,2.7151,4397.0,4396.9,9.49088827]
[1756992169343,2.7151,4397.0,4396.9,7.45398131]
[1756992169534,1.7973,4397.0,4396.9,7.45398131]
[1756992169730,1.4864,4397.3,4397.2,0.8749]
[1756992170028,1.4864,4397.3,4397.2,3.14737298]
[1756992170433,1.4864,4397.3,4397.2,1.1079]
[1756992170839,1.4864,4397.3,4397.2,0.8996]
[1756992171647,2.7572,4397.3,4397.2,0.8996]
[1756992171944,1.2708,4397.3,4397.2,0.8996]
[1756992172345,3.3348,4397.7,4397.5,0.2083]
[1756992172637,4.03093756,4397.7,4397.6,8.4393508]
[1756992173643,4.03093756,4397.7,4397.6,5.55491398]
[1756992173945,4.03093756,4397.7,4397.6,5.55279941]
[1756992175745,1.2708,4397.7,4397.6,5.55279941]
[1756992176136,1.7744,4398.0,4397.6,6.0149439]
[1756992176444,1.7744,4398.0,4397.9,3.13238898]
[1756992176646,1.7744,4398.0,4397.9,3.36538898]
[1756992177145,1.1184,4398.2,4398.1,0.6666]
[1756992177337,1.1184,4398.2,4398.1,4.3157]
[1756992177646,2.3892,4398.2,4398.1,4.3157]
[1756992177847,2.1886,4398.2,4398.1,4.1074]
[1756992181360,3.0952,4398.2,4398.1,3.2078]
[1756992181647,5.8244,4398.2,4398.0,1.12874449]
[1756992181850,1.8244,4398.2,4398.1,0.232]
[1756992182144,3.0952,4398.2,4398.1,0.232]
[1756992182350,3.0952,4398.2,4398.1,0.5653]
[1756992182650,0.97183592,4398.7,4398.2,1.1199]
[1756992182843,3.2078,4399.2,4398.6,7.24264449]
[1756992183044,2.3509,4399.0,4398.9,2.91494449]
[1756992183248,2.3509,4399.0,4398.9,3.14794449]
[1756992183554,2.3509,4399.0,4398.9,4.26784449]
[1756992183850,2.3509,4399.0,4398.9,3.14794449]
[1756992184051,2.3509,4399.0,4398.9,3.333004]
[1756992184348,1.9169,4399.5,4399.4,1.7862]
[1756992184650,1.9169,4399.5,4399.4,7.47564449]
[1756992184849,3.1877,4399.5,4399.4,7.47564449]
[1756992185552,3.1877,4399.5,4399.4,10.35472014]
[1756992185553,2.6612,4399.5,4399.4,10.35472014]
[1756992186247,0.5265,4400.5,4399.4,9.23482014]
[1756992186448,2.7151,4400.0,4399.9,1.7862]
[1756992186657,3.6217,4400.0,4399.9,2.0192]
[1756992187048,1.1176,4400.2,4399.9,7.14692014]
[1756992187347,1.2708,4400.1,4400.0,2.9061]
[1756992187551,2.1886,4400.1,4400.0,2.9061]
[1756992187948,1.1176,4400.2,4400.0,2.9061]
[1756992188250,1.1176,4400.2,4399.9,7.44862014]
[1756992188251,3.3062,4400.2,4400.1,3.1391]
[1756992188443,3.3062,4400.2,4400.1,2.9061]
[1756992188652,4.2128,4400.2,4400.1,2.0192]
[1756992189349,3.3062,4400.2,4400.1,3.1391]
[1756992189943,2.1886,4400.2,4400.1,3.1391]
[1756992190349,2.1886,4400.2,4400.1,2.0192]
[1756992190551,3.0952,4400.2,4400.1,2.0192]
[1756992192357,0.5245,4400.0,4399.9,3.2078]
[1756992192550,0.5245,4399.5,4399.1,6.04648556]
[1756992192752,3.0894,4399.2,4399.1,5.74922014]
[1756992193049,3.0894,4399.2,4399.1,5.98122014]
[1756992193451,3.0894,4399.2,4399.1,5.74922014]
[1756992193952,3.0894,4399.2,4399.1,5.98122014]
[1756992194959,2.2406,4399.2,4399.1,7.09502014]
[1756992195759,2.2406,4399.2,4399.1,5.98122014]
[1756992196255,3.0894,4399.2,4399.1,5.74922014]
[1756992196460,3.0894,4399.2,4399.1,5.98122014]
[1756992197561,3.0894,4399.2,4398.9,3.39285951]
[1756992197762,3.6139,4399.0,4398.9,3.39285951]
[1756992197964,3.6139,4399.0,4398.9,3.62485951]
[1756992198555,3.6139,4399.0,4398.9,3.4398]
[1756992198756,3.6139,4399.0,4398.9,3.2078]
[1756992198956,3.6139,4399.0,4398.9,3.4398]
[1756992199162,3.6139,4399.0,4398.9,4.3039]
[1756992199564,3.6139,4399.0,4398.9,5.1812]
[1756992199959,0.5245,4399.5,4398.9,5.1812]
[1756992200158,2.2406,4399.4,4399.3,1.7414]
[1756992200356,0.5245,4399.0,4398.9,3.2078]
[1756992200664,3.6139,4399.0,4398.9,3.4398]
[1756992201456,3.6139,4399.0,4398.9,4.3039]
[1756992202766,3.6139,4399.0,4398.9,5.1812]
[1756992202957,1.4584,4399.1,4398.9,6.2902]
[1756992203157,2.7991,4399.1,4399.0,2.8504]
[1756992203362,3.699,4399.1,4399.0,2.8504]
[1756992203563,3.699,4399.1,4398.9,3.4398]
[1756992203564,1.8652,4399.0,4398.9,3.4398]
[1756992203765,3.6139,4399.0,4398.9,3.4398]
[1756992204265,3.6139,4399.0,4398.9,3.2078]
[1756992204467,3.6139,4399.0,4398.9,3.4398]
[1756992204766,3.6139,4399.0,4398.9,4.3039]
[1756992205867,3.6139,4399.0,4398.9,5.1812]
[1756992208371,3.6139,4399.0,4398.9,7.21986542]
[1756992208667,1.3407,4399.2,4399.0,1.109]
[1756992208872,3.0894,4399.2,4399.1,1.9734]
[1756992209176,3.0894,4399.2,4399.1,0.232]
[1756992211168,3.975,4399.2,4399.1,0.232]
[1756992211370,3.975,4399.2,4399.1,2.27066542]
[1756992212362,3.975,4399.2,4399.1,0.232]
[1756992213063,3.975,4399.2,4399.1,1.9734]
[1756992213262,3.1262,4399.2,4399.1,3.0824]
[1756992213665,2.2263,4399.2,4399.1,3.0824]
[1756992213869,1.3407,4399.2,4399.1,3.0824]
[1756992214372,1.1856,4399.3,4399.1,1.9734]
[1756992214579,1.1856,4399.3,4399.2,3.0873]
[1756992215375,2.0855,4399.3,4399.2,3.0873]
[1756992215971,2.0855,4399.3,4399.2,3.3193]
[1756992216370,3.4262,4399.3,4399.2,3.3193]
[1756992216676,1.1856,4399.3,4399.2,3.3193]
[1756992216972,0.8999,4399.4,4399.3,3.0873]
[1756992217173,2.2406,4399.4,4399.3,3.0873]
[1756992218969,3.0894,4399.4,4399.2,0.232]
[1756992219673,3.0894,4399.4,4399.3,0.8641]
[1756992222378,3.0894,4399.4,4399.3,1.0961]
[1756992223475,1.3193,4399.3,4399.1,2.85522555]
[1756992223777,1.7179,4399.2,4399.0,2.85522555]
[1756992223978,3.0372,4399.1,4399.0,2.85522555]
[1756992224178,3.0372,4399.1,4398.9,6.06302555]
[1756992224374,3.5751,4399.0,4398.9,6.06302555]
[1756992224575,3.5751,4399.0,4398.9,6.29502555]
[1756992225177,3.5751,4399.0,4398.9,6.06302555]
[1756992225475,3.5751,4399.0,4398.9,3.4398]
[1756992225874,3.5751,4399.0,4398.9,3.2078]
[1756992226081,3.5751,4399.0,4398.9,3.4398]
[1756992226384,2.2558,4399.0,4398.9,0.232]
[1756992226574,3.5751,4399.0,4398.9,0.232]
[1756992226873,3.5751,4399.0,4398.9,2.27333543]
[1756992227079,3.5751,4399.0,4398.9,2.04133543]
[1756992227273,3.5751,4399.0,4398.9,0.232]
[1756992228377,3.5751,4399.0,4398.9,1.1245]
[1756992229681,3.5751,4399.0,4398.9,0.232]
[1756992231378,2.2558,4399.0,4398.7,2.04133543]
[1756992231680,3.0372,4398.8,4398.7,2.04133543]
[1756992231972,3.0372,4398.8,4398.7,2.27333543]
[1756992232579,3.0372,4398.8,4398.7,3.67970554]
[1756992234280,3.0372,4398.8,4398.7,4.57220554]
[1756992234578,3.0372,4398.8,4398.7,2.53087011]
[1756992236086,3.0372,4398.8,4398.7,4.57220554]
[1756992237783,4.3052,4398.8,4398.7,4.57220554]
[1756992237982,4.3052,4398.8,4398.7,4.34020554]
[1756992238186,4.3052,4398.8,4398.7,4.57220554]
[1756992238388,4.3052,4398.8,4398.7,3.67970554]
[1756992239084,4.3052,4398.8,4398.7,2.27333543]
[1756992239377,4.3052,4398.8,4398.6,31.373]
[1756992239378,2.9859,4398.8,4398.6,31.373]
[1756992239572,1.3193,4398.7,4398.6,31.373]
[1756992239881,1.3193,4398.7,4398.6,31.605]
[1756992241983,3.0372,4398.3,4398.2,2.04133543]
[1756992242182,3.0372,4398.3,4398.2,5.41750554]
[1756992242378,3.0372,4398.3,4398.2,6.73100554]
[1756992242583,2.1688,4398.6,4398.5,3.0513]
[1756992242785,2.1688,4398.6,4398.5,4.68967011]
[1756992244290,1.5952,4398.7,4398.5,5.23047011]
[1756992244482,1.5952,4398.7,4398.6,3.0513]
[1756992244681,2.4447,4398.7,4398.6,3.0513]
[1756992244886,3.764,4398.7,4398.6,3.0513]
[1756992245276,3.764,4398.7,4398.6,4.45767011]
[1756992247388,0.7496,4398.9,4398.7,1.3135]
[1756992247694,3.9136,4398.9,4398.8,4.68967011]
[1756992247879,2.5943,4398.9,4398.8,4.68967011]
[1756992248492,4.782,4398.9,4398.8,4.45767011]
[1756992248691,4.782,4398.9,4398.8,4.68967011]
[1756992250491,4.782,4398.9,4398.8,4.45767011]
[1756992250689,4.782,4398.9,4398.8,4.68967011]
[1756992251892,4.782,4398.9,4398.8,2.53087011]
[1756992252882,4.782,4398.9,4398.7,2.04133543]
[1756992253196,1.694,4398.8,4398.6,2.04133543]
[1756992253397,1.694,4398.7,4398.5,2.04133543]
[1756992253593,1.2975,4398.6,4398.5,2.04133543]
[1756992253783,2.9915,4398.6,4398.4,33.40933543]
[1756992254093,1.7448,4398.9,4398.4,33.40933543]
[1756992254094,1.7906,4398.5,4398.4,33.40933543]
[1756992254300,1.7906,4398.5,4398.4,33.64133543]
[1756992255802,5.7906,4398.5,4398.4,31.368]
[1756992256003,7.4846,4398.5,4398.4,0.232]
[1756992256300,2.9915,4397.9,4397.8,2.04133543]
[1756992256498,6.1993,4397.9,4397.8,0.232]
[1756992257396,6.1993,4397.9,4397.2,3.44770554]
[1756992257604,2.1871,4397.5,4397.4,0.8352]
[1756992257903,3.4846,4397.5,4397.4,1.0672]
[1756992258300,0.1136,4398.1,4397.8,1.7298]
[1756992258506,0.1136,4398.1,4398.0,4.89997011]
[1756992258705,0.1136,4398.1,4398.0,5.13197011]
[1756992258909,3.2078,4398.4,4398.3,1.7298]
[1756992259101,5.1174,4398.4,4398.3,4.64727011]
[1756992260006,7.2392,4398.4,4398.3,4.64727011]
[1756992260702,8.1089,4398.4,4398.3,4.64727011]
[1756992261209,8.1089,4398.4,4398.3,0.232]
[1756992261406,8.1089,4398.4,4398.3,1.0672]
[1756992261608,8.1089,4398.4,4398.3,3.2409]
[1756992262111,8.1089,4398.4,4398.3,3.09068644]
[1756992262302,6.1993,4398.4,4398.3,2.85868644]
[1756992262504,6.1993,4398.4,4398.3,4.36978644]
[1756992263103,5.3296,4398.4,4398.3,4.36978644]
[1756992263902,4.0321,4398.4,4398.3,4.36978644]
[1756992264201,1.9776,4398.5,4398.4,3.0089]
[1756992264806,0.1136,4398.6,4398.4,3.0089]
[1756992265008,0.1136,4398.6,4398.5,3.7256]
[1756992265208,1.2975,4398.8,4398.6,1.2791]
[1756992265416,2.1218,4398.8,4398.7,4.36978644]
[1756992266412,0.8243,4398.8,4398.7,4.36978644]
[1756992266712,6.0792,4398.9,4398.8,3.0089]
[1756992267216,6.9489,4398.9,4398.8,3.0089]
[1756992268112,0.7496,4398.9,4398.8,3.0089]
[1756992268507,0.7496,4398.9,4398.8,5.04249114]
[1756992268714,2.8714,4398.9,4398.8,5.04249114]
[1756992271515,0.7496,4398.9,4398.8,6.17137758]
[1756992271714,0.7496,4398.9,4398.8,3.0089]
[1756992276418,2.8714,4398.9,4398.8,3.2409]
[1756992278019,0.7496,4398.9,4398.8,3.0089]
[1756992278317,0.7496,4398.9,4398.8,3.2409]
[1756992278712,0.7496,4398.9,4398.8,4.36978644]
[1756992278912,0.7496,4398.9,4398.8,3.2409]
[1756992280520,0.7496,4398.9,4398.8,6.4487]
[1756992280722,0.1136,4399.0,4398.8,6.4487]
[1756992280916,2.2354,4399.0,4398.9,3.0089]
[1756992281118,2.1218,4399.0,4398.9,3.0089]
[1756992281420,7.4846,4399.0,4398.9,2.02900491]
[1756992281611,6.1871,4399.0,4398.8,3.2078]
[1756992281817,7.4846,4399.0,4398.9,0.232]
[1756992282017,7.4846,4399.0,4398.9,1.36088644]
[1756992282211,7.4846,4399.0,4398.9,2.19608644]
[1756992282917,7.4846,4399.0,4398.9,0.232]
[1756992283117,7.4846,4399.0,4398.9,1.36088644]
[1756992284816,1.6981,4398.9,4398.5,33.39900491]
[1756992285021,1.2934,4398.8,4398.7,1.12888644]
[1756992285220,2.9915,4398.8,4398.7,1.36088644]
[1756992288324,2.9915,4398.8,4398.7,1.12888644]
[1756992288626,2.9915,4398.8,4398.7,1.36088644]
[1756992289823,2.9915,4398.8,4398.7,2.23718644]
[1756992290023,2.9915,4398.8,4398.7,4.34138644]
[1756992290628,2.1206,4398.8,4398.7,4.34138644]
[1756992291128,5.3284,4399.0,4398.9,1.6997]
[1756992291333,5.3284,4399.0,4398.9,3.2125]
[1756992291727,6.5556,4399.0,4398.9,3.2125]
[1756992291928,7.9029,4399.0,4398.9,4.34138644]
[1756992292119,7.9029,4399.0,4398.9,3.06058644]
[1756992293330,4.6951,4399.0,4398.9,3.06058644]
[1756992293531,4.6951,4399.0,4398.9,2.23718644]
[1756992293737,3.4017,4399.0,4398.6,3.15789135]
[1756992294027,1.6981,4398.7,4398.5,2.02900491]
[1756992294226,2.1206,4398.7,4398.6,4.34138644]
[1756992294626,2.1206,4398.7,4398.6,6.37039135]
[1756992295928,0.8272,4398.7,4398.6,6.37039135]
[1756992296234,1.2272,4399.0,4398.9,1.6997]
[1756992296429,1.2272,4399.0,4398.9,4.34138644]
[1756992296625,4.2187,4399.0,4398.9,4.34138644]
[1756992296830,4.6951,4399.0,4398.9,1.36088644]
[1756992298733,4.6951,4399.0,4398.9,1.12888644]
[1756992298930,4.6951,4399.0,4398.9,1.36088644]
[1756992299234,4.6951,4399.0,4398.9,2.23718644]
[1756992300129,7.9029,4399.0,4398.9,2.00518644]
[1756992300333,0.5505,4398.1,4398.0,2.85522555]
[1756992300528,1.67938644,4398.1,4398.0,3.08722555]
[1756992300728,1.67938644,4398.1,4398.0,0.232]
[1756992301328,0.4194,4398.1,4398.0,4.00158644]
[1756992301524,0.4194,4398.1,4398.0,3.12528644]
[1756992301838,0.5505,4398.1,4398.0,3.12528644]
[1756992302231,0.4194,4398.1,4398.0,3.12528644]
[1756992302427,0.4194,4398.1,4398.0,3.76958644]
[1756992302636,0.4194,4398.1,4398.0,4.00158644]
[1756992304239,1.67938644,4398.1,4398.0,0.232]
[1756992304433,1.12888644,4398.1,4397.7,31.367]
[1756992304632,1.25998644,4397.8,4397.7,31.367]
[1756992304838,1.25998644,4397.8,4397.7,31.599]
[1756992305441,1.25998644,4397.8,4397.7,32.8798]
[1756992305733,0.5505,4397.6,4397.5,1.6934]
[1756992305937,1.54828644,4397.6,4397.5,1.9254]
[1756992306835,3.2078,4397.9,4397.8,1.6997]
[1756992307036,3.2078,4397.9,4397.8,4.34138644]
[1756992308632,0.1136,4398.1,4398.0,1.7644]
[1756992308840,3.2078,4398.5,4398.0,2.4153]
[1756992309040,3.4175,4398.5,4398.4,2.9805]
[1756992309240,0.22736,4398.4,4397.6,1.2808]
[1756992309544,1.54828644,4397.7,4397.6,1.2808]
[1756992309745,1.54828644,4397.7,4397.6,1.5128]
[1756992310453,1.54828644,4397.7,4397.6,2.3891]
[1756992310634,0.4194,4397.7,4397.6,3.2125]
[1756992310839,0.1136,4397.9,4397.7,1.2808]
[1756992311040,0.3233,4397.9,4397.8,3.2125]
[1756992311446,0.2097,4397.9,4397.8,3.2125]
[1756992311647,5.9078,4398.0,4397.8,3.06058644]
[1756992311847,5.9078,4398.0,4397.9,2.9805]
[1756992312049,5.9078,4398.0,4397.9,1.6997]
[1756992312050,6.735,4398.0,4397.9,1.6997]
[1756992312645,3.5272,4398.0,4397.9,1.6997]
[1756992313051,2.0136,4398.0,4397.9,1.6997]
[1756992313245,0.0187,4397.9,4397.8,1.36088644]
[1756992313442,0.8468,4397.9,4397.8,3.07958644]
[1756992313848,3.2078,4399.0,4397.8,7.07958644]
[1756992314039,3.2078,4399.7,4399.2,2.9832]
[1756992314238,1.2189,4400.0,4399.2,9.47297288]
[1756992314443,3.2078,4400.2,4399.2,9.47297288]
[1756992314444,3.2078,4400.2,4400.1,2.9832]
[1756992314639,3.2078,4400.8,4400.1,4.34408644]
[1756992315050,3.3214,4400.8,4400.1,4.34408644]
[1756992315243,3.3214,4400.8,4400.4,4.11208644]
[1756992315244,0.8281,4400.5,4400.4,4.11208644]
[1756992315447,4.1495,4400.8,4400.7,2.9832]
[1756992315649,4.1495,4400.8,4400.7,3.2152]
[1756992315851,5.3359,4400.8,4400.7,3.2152]
[1756992316244,1.1864,4400.8,4400.7,3.2152]
[1756992317043,1.1864,4400.8,4400.7,6.423]
[1756992317244,1.1864,4400.8,4400.7,10.191]
[1756992317438,1.1864,4400.8,4400.7,10.423]
[1756992319051,0.8448,4401.3,4401.2,1.7187]
[1756992319251,0.8448,4401.3,4401.2,3.2152]
[1756992319451,1.6729,4401.3,4401.2,3.2152]
[1756992319652,2.8918,4401.3,4401.2,3.2152]
[1756992320348,3.7078,4401.3,4401.2,1.1025]
[1756992321253,2.863,4400.8,4400.7,4.9265]
[1756992321554,2.863,4400.8,4400.7,5.1585]
[1756992322053,2.863,4400.8,4400.7,6.423]
[1756992322247,2.863,4400.8,4400.7,3.2078]
[1756992322447,1.6441,4400.8,4400.2,3.2078]
[1756992322649,1.6441,4400.8,4400.3,0.232]
[1756992323150,2.863,4400.4,4400.3,2.9832]
[1756992323347,0.8281,4400.4,4400.3,3.2152]
[1756992324648,2.047,4401.0,4400.9,1.7187]
[1756992324847,3.343,4401.0,4400.9,1.9507]
[1756992325156,3.343,4401.0,4400.9,0.232]
[1756992328351,3.343,4401.0,4400.3,0.22773423]
[1756992328550,2.047,4401.0,4400.9,2.9832]
[1756992328751,2.047,4401.0,4400.9,3.2152]
[1756992329852,1.2189,4401.4,4401.0,0.4845]
[1756992330054,5.3319,4401.5,4401.4,0.8705]
[1756992330358,5.3319,4401.5,4401.4,1.9507]
[1756992330559,6.5508,4401.5,4401.4,1.9507]
[1756992331653,6.5508,4401.5,4401.4,3.2152]
[1756992332160,4.4267,4401.5,4401.4,3.2152]
[1756992332561,3.343,4401.5,4401.4,3.2152]
[1756992332857,3.343,4401.5,4401.4,1.9507]
[1756992333459,3.343,4401.5,4401.4,3.2152]
[1756992334958,3.343,4401.5,4400.8,3.2078]
[1756992335264,2.1241,4401.5,4400.9,1.4965]
[1756992335764,2.1241,4401.0,4400.9,3.2152]
[1756992335961,2.047,4400.9,4400.8,3.2078]
[1756992336154,2.863,4400.9,4400.8,3.4398]
[1756992336358,2.863,4400.9,4400.8,3.2078]
[1756992336559,2.863,4400.9,4400.8,3.4398]
[1756992337062,2.863,4400.9,4400.8,4.0783]
[1756992337268,2.863,4400.9,4400.8,3.4398]
[1756992338371,2.863,4400.9,4400.8,5.1585]
[1756992338570,2.863,4400.9,4400.8,6.423]
[1756992338961,2.047,4400.9,4400.8,6.423]
[1756992339161,2.863,4400.9,4400.8,6.423]
[1756992339363,2.863,4400.9,4400.8,3.4398]
[1756992339563,2.863,4400.9,4400.8,5.1585]
[1756992342160,2.047,4400.9,4400.8,6.423]
[1756992342365,1.228,4401.4,4400.8,6.423]
[1756992342565,2.1729,4401.5,4401.4,0.8005]
[1756992342767,3.4009,4401.5,4401.4,1.0325]
[1756992343168,3.4009,4401.5,4401.4,0.232]
[1756992343665,0.5173,4401.0,4400.8,3.2078]
[1756992343871,2.9209,4400.9,4400.8,3.2078]
[1756992344163,2.9209,4400.9,4400.8,3.4398]
[1756992345163,2.9209,4400.9,4400.8,4.2403]
[1756992345761,4.5017,4400.9,4400.8,4.2403]
[1756992346265,4.5017,4400.9,4400.8,3.2078]
[1756992346457,4.5017,4400.9,4400.8,0.232]
[1756992348566,3.4382,4400.5,4400.4,0.8005]
[1756992348765,3.4382,4400.5,4400.4,1.0325]
[1756992352470,2.0664,4400.6,4400.5,2.793]
[1756992352675,2.9209,4400.6,4400.5,2.793]
[1756992353576,2.9209,4400.6,4400.5,3.025]
[1756992353770,2.9209,4400.6,4400.5,1.8437]
[1756992354775,4.3929,4400.6,4400.5,1.8437]
[1756992356477,4.3929,4400.6,4400.5,1.6117]
[1756992356678,4.3929,4400.6,4400.5,3.025]
[1756992358073,4.3929,4400.6,4400.5,1.8437]
[1756992358580,4.3929,4400.6,4400.5,3.025]
[1756992358775,1.472,4400.6,4400.5,3.4914]
[1756992359581,1.472,4400.6,4400.5,4.89634836]
[1756992360082,2.7,4400.6,4400.5,4.89634836]
[1756992360376,1.472,4400.6,4400.5,8.89634836]
[1756992361682,1.472,4400.6,4400.5,7.4914]
[1756992361871,1.472,4400.6,4400.5,10.92600763]
[1756992362984,0.1136,4400.9,4400.8,1.3274]
[1756992363178,1.228,4400.9,4400.8,6.58694836]
[1756992363378,1.228,4400.9,4400.8,8.61592196]
[1756992364186,1.228,4401.4,4400.8,6.58694836]
[1756992364484,2.0664,4401.4,4401.3,1.40494836]
[1756992364681,2.0664,4401.4,4401.3,2.85074836]
[1756992365277,1.228,4401.9,4401.3,3.26554836]
[1756992365478,2.0664,4401.9,4401.8,2.73234836]
[1756992365683,2.0664,4401.9,4401.8,2.96434836]
[1756992365980,1.228,4401.9,4401.8,0.232]
[1756992366284,2.9209,4401.9,4401.8,0.232]
[1756992367078,2.9209,4401.9,4401.4,4.61274836]
[1756992367282,2.2102,4401.5,4401.4,5.27644836]
[1756992367581,3.4382,4401.5,4401.4,5.50844836]
[1756992369279,3.4382,4401.5,4401.4,6.17214836]
[1756992369280,2.5837,4401.5,4401.4,6.17214836]
[1756992369480,1.228,4401.5,4401.4,6.58694836]
[1756992369779,2.4544,4401.5,4401.4,6.58694836]
[1756992370282,1.2264,4401.5,4401.4,6.58694836]
[1756992370879,1.708,4402.0,4401.9,1.3274]
[1756992371084,1.708,4402.0,4401.9,3.37914836]
[1756992372386,2.5464,4402.0,4401.9,2.96434836]
[1756992372784,1.708,4402.0,4401.9,3.35874836]
[1756992373887,2.5446,4402.0,4401.9,2.96434836]
[1756992374086,0.4834,4401.5,4401.4,5.23741076]
[1756992374286,3.3834,4401.5,4401.4,5.23741076]
[1756992374590,1.6687,4400.9,4400.8,1.40494836]
[1756992374786,2.9,4400.9,4400.8,0.232]
[1756992375880,1.2313,4400.8,4400.6,34.5628]
[1756992376084,2.9,4400.7,4400.6,34.5628]
[1756992376284,2.9,4400.7,4400.6,34.7948]
[1756992378589,2.9,4400.7,4400.6,31.355]
[1756992378787,3.9216,4400.7,4400.6,31.587]
[1756992380288,1.6687,4399.8,4399.7,0.22540244]
[1756992380492,0.4834,4400.0,4399.6,3.2078]
[1756992380493,1.2313,4399.7,4399.6,3.2078]
[1756992380694,2.9,4399.7,4399.6,3.4398]